[Event "*** Titled Tuesday Blitz"]
[Site "Chess.com"]
[Date "2021.03.02"]
[Round "5"]
[White "ChessQueen"]
[Black "Skat2704"]
[Result "0-1"]
[WhiteElo "2721"]
[BlackElo "2573"]
[TimeControl "180+1"]
[EndTime "10:56:03 PST"]
[Termination "Skat2704 won by resignation"]

1. e4 {[%clk 0:01:25.2]} 1... c5 {[%clk 0:02:58.1]} 2. c3 {[%clk 0:01:20.6]}
2... Nf6 {[%clk 0:02:56.4]} 3. e5 {[%clk 0:01:19.8]} 3... Nd5 {[%clk 0:02:55]}
4. Nf3 {[%clk 0:01:18.5]} 4... Nc6 {[%clk 0:02:52.8]} 5. d4 {[%clk 0:01:19]}
5... cxd4 {[%clk 0:02:51]} 6. cxd4 {[%clk 0:01:19.6]} 6... d6 {[%clk 0:02:49.9]}
7. Bc4 {[%clk 0:01:19.6]} 7... Nb6 {[%clk 0:02:48.5]} 8. Bb5 {[%clk 0:01:19.3]}
8... d5 {[%clk 0:02:47.5]} 9. O-O {[%clk 0:01:18.7]} 9... Bf5 {[%clk 0:02:45.9]}
10. Nc3 {[%clk 0:01:18.4]} 10... e6 {[%clk 0:02:43.8]} 11. Bg5 {[%clk
0:01:16.9]} 11... Be7 {[%clk 0:02:41.8]} 12. Bxe7 {[%clk 0:01:17.1]} 12... Qxe7
{[%clk 0:02:41.6]} 13. Rc1 {[%clk 0:01:17.7]} 13... O-O {[%clk 0:02:38.8]} 14.
Ne2 {[%clk 0:01:17.9]} 14... Na5 {[%clk 0:02:34.7]} 15. h3 {[%clk 0:01:11.8]}
15... Nac4 {[%clk 0:02:29.5]} 16. b3 {[%clk 0:01:10]} 16... Na3 {[%clk
0:02:22.3]} 17. Bd3 {[%clk 0:01:09.8]} 17... Bg6 {[%clk 0:02:17.6]} 18. Nf4
{[%clk 0:01:07.9]} 18... Bxd3 {[%clk 0:02:09.7]} 19. Nxd3 {[%clk 0:01:07.4]}
19... Rfc8 {[%clk 0:02:05.9]} 20. Qd2 {[%clk 0:01:07.4]} 20... a5 {[%clk
0:02:02.3]} 21. Nc5 {[%clk 0:01:06.6]} 21... Rc7 {[%clk 0:01:53.9]} 22. Qb2
{[%clk 0:01:06.6]} 22... Nb5 {[%clk 0:01:52]} 23. a4 {[%clk 0:01:06.9]} 23...
Na7 {[%clk 0:01:50]} 24. Rc3 {[%clk 0:01:04.8]} 24... Nc6 {[%clk 0:01:46.8]} 25.
Rfc1 {[%clk 0:00:59.4]} 25... Nb4 {[%clk 0:01:44.1]} 26. Qd2 {[%clk 0:00:56.9]}
26... Rac8 {[%clk 0:01:40.9]} 27. Nh2 {[%clk 0:00:55.7]} 27... h6 {[%clk
0:01:38.1]} 28. Ng4 {[%clk 0:00:55.7]} 28... Kh7 {[%clk 0:01:35.5]} 29. Rf3
{[%clk 0:00:48.2]} 29... Nd7 {[%clk 0:01:22.2]} 30. Rfc3 {[%clk 0:00:37.8]}
30... Nxc5 {[%clk 0:01:20.1]} 31. dxc5 {[%clk 0:00:38.3]} 31... Rxc5 {[%clk
0:01:19.3]} 32. Qd4 {[%clk 0:00:38.5]} 32... Rxc3 {[%clk 0:01:14.3]} 33. Rxc3
{[%clk 0:00:39.4]} 33... Rxc3 {[%clk 0:01:13.2]} 34. Qxc3 {[%clk 0:00:40.3]}
34... Qd7 {[%clk 0:01:08.6]} 35. Qd4 {[%clk 0:00:40.4]} 35... Qc6 {[%clk
0:01:05.8]} 36. Ne3 {[%clk 0:00:39.6]} 36... Qc1+ {[%clk 0:00:53.9]} 37. Kh2
{[%clk 0:00:39.9]} 37... Qb1 {[%clk 0:00:53.1]} 38. Qf4 {[%clk 0:00:38.8]} 38...
Kg8 {[%clk 0:00:50.8]} 39. Qd4 {[%clk 0:00:33.7]} 39... Qxb3 {[%clk 0:00:49.2]}
40. Qb6 {[%clk 0:00:33.4]} 40... Qxa4 {[%clk 0:00:45.4]} 41. Qd8+ {[%clk
0:00:32.2]} 41... Kh7 {[%clk 0:00:43.8]} 42. Ng4 {[%clk 0:00:32.5]} 42... Qc2
{[%clk 0:00:38.5]} 43. Qd7 {[%clk 0:00:22.9]} 43... Qf5 {[%clk 0:00:30.6]} 44.
g3 {[%clk 0:00:17.1]} 44... h5 {[%clk 0:00:28.5]} 45. Nf6+ {[%clk 0:00:17.5]}
45... Kg6 {[%clk 0:00:26.1]} 46. Ng8 {[%clk 0:00:17.6]} 46... Qxf2+ {[%clk
0:00:24]} 47. Kh1 {[%clk 0:00:18.2]} 47... Qf1+ {[%clk 0:00:18.4]} 48. Kh2
{[%clk 0:00:18]} 48... Nd3 {[%clk 0:00:18.5]} 49. Ne7+ {[%clk 0:00:17.8]} 49...
Kh6 {[%clk 0:00:16.4]} 50. Ng8+ {[%clk 0:00:15.3]} 50... Kh7 {[%clk 0:00:14.5]}
51. Nf6+ {[%clk 0:00:15.7]} 51... Kg6 {[%clk 0:00:14.3]} 52. Nxd5 {[%clk
0:00:16.1]} 52... Nxe5 {[%clk 0:00:12]} 53. Ne7+ {[%clk 0:00:15.6]} 53... Kh7
{[%clk 0:00:10.7]} 54. Qxb7 {[%clk 0:00:15.2]} 54... Nf3+ {[%clk 0:00:10.6]} 0-1

[Event "*** Titled Tuesday Blitz"]
[Site "Chess.com"]
[Date "2021.03.02"]
[Round "5"]
[White "MITerryble"]
[Black "CheckThis4"]
[Result "1-0"]
[WhiteElo "2923"]
[BlackElo "2619"]
[TimeControl "180+1"]
[EndTime "10:56:04 PST"]
[Termination "MITerryble won by resignation"]

1. e4 {[%clk 0:03:00.3]} 1... e6 {[%clk 0:02:59.7]} 2. d4 {[%clk 0:03:00]} 2...
d5 {[%clk 0:03:00.4]} 3. exd5 {[%clk 0:03:00.9]} 3... exd5 {[%clk 0:03:00.3]} 4.
Nf3 {[%clk 0:03:01.8]} 4... Nc6 {[%clk 0:02:59.9]} 5. Bb5 {[%clk 0:03:01.1]}
5... Bd6 {[%clk 0:02:59.9]} 6. h3 {[%clk 0:03:01.2]} 6... Ne7 {[%clk 0:02:58.6]}
7. c4 {[%clk 0:03:01.2]} 7... dxc4 {[%clk 0:02:56.9]} 8. Bxc4 {[%clk 0:02:59.7]}
8... Bf5 {[%clk 0:02:53.5]} 9. O-O {[%clk 0:02:55.9]} 9... Qd7 {[%clk
0:02:53.7]} 10. Re1 {[%clk 0:02:53.8]} 10... h6 {[%clk 0:02:37.1]} 11. a3 {[%clk
0:02:39.3]} 11... O-O-O {[%clk 0:02:30.5]} 12. Nc3 {[%clk 0:01:54.2]} 12... Bxh3
{[%clk 0:01:56.5]} 13. gxh3 {[%clk 0:01:53.6]} 13... Qxh3 {[%clk 0:01:56.8]} 14.
Bf1 {[%clk 0:01:49.4]} 14... Qh5 {[%clk 0:01:52.3]} 15. Ne5 {[%clk 0:01:41.5]}
15... Qf5 {[%clk 0:01:35.7]} 16. Nxc6 {[%clk 0:00:39.2]} 16... Nxc6 {[%clk
0:01:28.7]} 17. Qd3 {[%clk 0:00:39.1]} 17... Qf6 {[%clk 0:01:26]} 18. Ne4 {[%clk
0:00:23.5]} 18... Qxd4 {[%clk 0:01:10.1]} 19. Qxd4 {[%clk 0:00:16.6]} 19... Nxd4
{[%clk 0:01:11]} 20. Rd1 {[%clk 0:00:17.1]} 20... Be5 {[%clk 0:00:41.2]} 21. Be3
{[%clk 0:00:16.9]} 21... Nc2 {[%clk 0:00:36.6]} 22. Rxd8+ {[%clk 0:00:14.2]}
22... Rxd8 {[%clk 0:00:34.9]} 23. Rb1 {[%clk 0:00:15.1]} 23... f5 {[%clk
0:00:28.8]} 24. Bh3 {[%clk 0:00:14.3]} 24... g6 {[%clk 0:00:26.8]} 25. Nc3
{[%clk 0:00:12.6]} 25... Nxe3 {[%clk 0:00:21.7]} 26. fxe3 {[%clk 0:00:12.4]}
26... Bxc3 {[%clk 0:00:20]} 27. bxc3 {[%clk 0:00:12.2]} 27... Rd3 {[%clk
0:00:20.7]} 28. Kf2 {[%clk 0:00:12.5]} 28... Rxc3 {[%clk 0:00:20.4]} 29. Rg1
{[%clk 0:00:13.2]} 29... Rxa3 {[%clk 0:00:15.5]} 30. Rxg6 {[%clk 0:00:13.2]}
30... b6 {[%clk 0:00:15.9]} 31. Bxf5+ {[%clk 0:00:12.7]} 31... Kb7 {[%clk
0:00:16.2]} 32. Rxh6 {[%clk 0:00:12.9]} 32... b5 {[%clk 0:00:15.4]} 33. Be4+
{[%clk 0:00:12.9]} 33... Kc8 {[%clk 0:00:14.5]} 34. Bc6 {[%clk 0:00:12.8]} 34...
Rd3 {[%clk 0:00:11.9]} 35. Rh8+ {[%clk 0:00:07.3]} 35... Rd8 {[%clk 0:00:11.8]}
36. Rxd8+ {[%clk 0:00:05.6]} 36... Kxd8 {[%clk 0:00:11.9]} 37. Bxb5 {[%clk
0:00:06.5]} 37... Ke7 {[%clk 0:00:12.3]} 38. Ke2 {[%clk 0:00:06.8]} 38... Kd6
{[%clk 0:00:13.2]} 39. Kd3 {[%clk 0:00:07]} 39... a5 {[%clk 0:00:14.1]} 40. Kd4
{[%clk 0:00:06.3]} 40... c5+ {[%clk 0:00:14.2]} 41. Kc4 {[%clk 0:00:05.4]} 41...
Ke5 {[%clk 0:00:13.8]} 42. Kd3 {[%clk 0:00:05.4]} 42... Kd5 {[%clk 0:00:13.2]}
43. e4+ {[%clk 0:00:05.5]} 43... Ke5 {[%clk 0:00:13.4]} 44. Ke3 {[%clk
0:00:06.4]} 44... c4 {[%clk 0:00:09.7]} 45. Bxc4 {[%clk 0:00:05.9]} 45... a4
{[%clk 0:00:10.6]} 46. Kd3 {[%clk 0:00:06.2]} 46... a3 {[%clk 0:00:10.9]} 47.
Ba2 {[%clk 0:00:06.4]} 47... Kd6 {[%clk 0:00:10]} 48. Kd4 {[%clk 0:00:07.3]}
48... Kc6 {[%clk 0:00:10.1]} 49. e5 {[%clk 0:00:08.2]} 49... Kd7 {[%clk
0:00:11]} 50. Kd5 {[%clk 0:00:08]} 50... Ke7 {[%clk 0:00:11.9]} 51. e6 {[%clk
0:00:08.7]} 51... Kd8 {[%clk 0:00:12]} 52. Kd6 {[%clk 0:00:08.8]} 52... Ke8
{[%clk 0:00:11.9]} 53. Bb3 {[%clk 0:00:08.8]} 53... Kd8 {[%clk 0:00:11.7]} 54.
e7+ {[%clk 0:00:08.9]} 54... Ke8 {[%clk 0:00:12.6]} 55. Ba4+ {[%clk 0:00:08.9]}
55... Kf7 {[%clk 0:00:12.9]} 56. e8=Q+ {[%clk 0:00:09.8]} 56... Kf6 {[%clk
0:00:13]} 57. Qe6+ {[%clk 0:00:09.3]} 1-0

[Event "*** Titled Tuesday Blitz"]
[Site "Chess.com"]
[Date "2021.03.02"]
[Round "5"]
[White "Mikedannnn"]
[Black "UmutErdemGunduz"]
[Result "1-0"]
[WhiteElo "2574"]
[BlackElo "2357"]
[TimeControl "180+1"]
[EndTime "10:56:04 PST"]
[Termination "Mikedannnn won by resignation"]

1. e4 {[%clk 0:03:00.9]} 1... e5 {[%clk 0:02:59.8]} 2. Nf3 {[%clk 0:03:00.4]}
2... Nc6 {[%clk 0:03:00.3]} 3. d4 {[%clk 0:02:58.7]} 3... exd4 {[%clk
0:03:01.2]} 4. Nxd4 {[%clk 0:02:59.4]} 4... Bc5 {[%clk 0:03:01.1]} 5. Be3 {[%clk
0:02:59.2]} 5... Qf6 {[%clk 0:02:59.7]} 6. Nb5 {[%clk 0:02:59.7]} 6... Bxe3
{[%clk 0:02:58.6]} 7. fxe3 {[%clk 0:03:00.6]} 7... Qe5 {[%clk 0:02:58.2]} 8. Nd2
{[%clk 0:02:59.6]} 8... Kd8 {[%clk 0:02:31.6]} 9. Nf3 {[%clk 0:02:57.9]} 9...
Qxe4 {[%clk 0:02:17.4]} 10. Qd2 {[%clk 0:02:55.7]} 10... a6 {[%clk 0:02:13]} 11.
Nc3 {[%clk 0:02:53.9]} 11... Qe7 {[%clk 0:02:12.2]} 12. O-O-O {[%clk 0:02:53.1]}
12... Nf6 {[%clk 0:02:12.2]} 13. e4 {[%clk 0:02:47]} 13... d6 {[%clk 0:02:11.7]}
14. Re1 {[%clk 0:02:44]} 14... Ne5 {[%clk 0:01:55.2]} 15. Nd4 {[%clk 0:02:40.7]}
15... Bd7 {[%clk 0:01:43.7]} 16. h3 {[%clk 0:02:40.9]} 16... h5 {[%clk
0:01:35.8]} 17. g3 {[%clk 0:02:39.7]} 17... Rh6 {[%clk 0:01:24.5]} 18. Bg2
{[%clk 0:02:39.6]} 18... Rg6 {[%clk 0:01:23.2]} 19. Nde2 {[%clk 0:02:38.1]}
19... Ke8 {[%clk 0:01:19.9]} 20. Rhf1 {[%clk 0:02:37.4]} 20... Kf8 {[%clk
0:01:17.9]} 21. Rd1 {[%clk 0:02:29.9]} 21... Bc6 {[%clk 0:01:13.8]} 22. Qe1
{[%clk 0:02:29.8]} 22... Re8 {[%clk 0:00:53.7]} 23. Nf4 {[%clk 0:02:29.9]} 23...
Rh6 {[%clk 0:00:53.8]} 24. Qf2 {[%clk 0:02:30.5]} 24... Kg8 {[%clk 0:00:51.7]}
25. a4 {[%clk 0:02:26.5]} 25... b5 {[%clk 0:00:47.9]} 26. axb5 {[%clk
0:02:24.2]} 26... axb5 {[%clk 0:00:48.8]} 27. b3 {[%clk 0:02:22.4]} 27... b4
{[%clk 0:00:48.3]} 28. Ncd5 {[%clk 0:02:20.7]} 28... Nxd5 {[%clk 0:00:46.2]} 29.
exd5 {[%clk 0:02:20.8]} 29... Bb5 {[%clk 0:00:45.3]} 30. Rfe1 {[%clk 0:02:20.3]}
30... Ra8 {[%clk 0:00:42.2]} 31. Kb2 {[%clk 0:02:19.9]} 31... Qf6 {[%clk
0:00:23.6]} 32. Qd4 {[%clk 0:02:19.7]} 32... g5 {[%clk 0:00:19.7]} 33. Ne2
{[%clk 0:02:10.6]} 33... Bxe2 {[%clk 0:00:14.3]} 34. Rxe2 {[%clk 0:02:09.7]}
34... Kf8 {[%clk 0:00:14.4]} 35. Rf2 {[%clk 0:02:01]} 35... Qg7 {[%clk
0:00:12.9]} 36. Be4 {[%clk 0:02:00.1]} 36... Nd7 {[%clk 0:00:11.5]} 37. Qxg7+
{[%clk 0:01:59.1]} 37... Kxg7 {[%clk 0:00:12.4]} 38. Rd4 {[%clk 0:01:58.1]}
38... Rb8 {[%clk 0:00:11.2]} 39. Bf5 {[%clk 0:01:58.4]} 39... Rf6 {[%clk
0:00:09.9]} 40. g4 {[%clk 0:01:58.3]} 40... h4 {[%clk 0:00:09.8]} 41. Re2 {[%clk
0:01:57.5]} 41... Ne5 {[%clk 0:00:10.1]} 42. Re3 {[%clk 0:01:56.6]} 42... Kf8
{[%clk 0:00:09.4]} 43. Rd1 {[%clk 0:01:52.6]} 43... Kg7 {[%clk 0:00:09.5]} 44.
Ra1 {[%clk 0:01:52.4]} 44... Rb7 {[%clk 0:00:09.6]} 45. Ra8 {[%clk 0:01:51.1]}
45... Rh6 {[%clk 0:00:10]} 46. Re8 {[%clk 0:01:49]} 46... Rh8 {[%clk 0:00:10.2]}
47. Re7 {[%clk 0:01:47.8]} 47... Kf6 {[%clk 0:00:10.2]} 48. R7xe5 {[%clk
0:01:43.4]} 48... dxe5 {[%clk 0:00:11.1]} 49. Be4 {[%clk 0:01:44.2]} 49... Rd8
{[%clk 0:00:11]} 50. Rf3+ {[%clk 0:01:44.1]} 50... Ke7 {[%clk 0:00:10.7]} 51.
Rf5 {[%clk 0:01:44.3]} 51... Rb6 {[%clk 0:00:09.8]} 52. Rxg5 {[%clk 0:01:43.3]}
52... f6 {[%clk 0:00:08.9]} 53. Rh5 {[%clk 0:01:43]} 53... Rbd6 {[%clk
0:00:04.7]} 54. Rxh4 {[%clk 0:01:43]} 54... Rxd5 {[%clk 0:00:05.2]} 55. Rh7+
{[%clk 0:01:42.3]} 55... Ke6 {[%clk 0:00:02.4]} 56. Bxd5+ {[%clk 0:01:40.7]}
56... Rxd5 {[%clk 0:00:03.3]} 57. Rxc7 {[%clk 0:01:40.6]} 57... e4 {[%clk
0:00:03.4]} 58. Rc4 {[%clk 0:01:38.6]} 58... e3 {[%clk 0:00:04]} 59. Kc1 {[%clk
0:01:36.7]} 59... Re5 {[%clk 0:00:02.7]} 60. Kd1 {[%clk 0:01:36.3]} 60... f5
{[%clk 0:00:02.6]} 61. gxf5+ {[%clk 0:01:36]} 61... Kxf5 {[%clk 0:00:03.5]} 62.
Ke2 {[%clk 0:01:36.4]} 62... Kg5 {[%clk 0:00:03.1]} 63. Rxb4 {[%clk 0:01:36.4]}
63... Rc5 {[%clk 0:00:03.1]} 64. Rg4+ {[%clk 0:01:36.7]} 64... Kf5 {[%clk
0:00:02.9]} 65. c4 {[%clk 0:01:37.4]} 65... Ra5 {[%clk 0:00:03.3]} 66. Kxe3
{[%clk 0:01:35.9]} 66... Ra3 {[%clk 0:00:03.8]} 67. Rf4+ {[%clk 0:01:34.6]}
67... Ke5 {[%clk 0:00:04.4]} 68. Re4+ {[%clk 0:01:33.7]} 68... Kf5 {[%clk
0:00:04.9]} 69. Rf4+ {[%clk 0:01:33.8]} 69... Ke5 {[%clk 0:00:05.2]} 70. Re4+
{[%clk 0:01:31.7]} 70... Kf5 {[%clk 0:00:05.7]} 71. Rd4 {[%clk 0:01:32.4]} 71...
Rxb3+ {[%clk 0:00:04]} 72. Rd3 {[%clk 0:01:33.3]} 72... Rb8 {[%clk 0:00:02.5]}
73. Kd4 {[%clk 0:01:33.8]} 73... Rd8+ {[%clk 0:00:02.8]} 74. Kc3 {[%clk
0:01:34.4]} 74... Rc8 {[%clk 0:00:03.5]} 75. Rd5+ {[%clk 0:01:34]} 75... Ke4
{[%clk 0:00:04.4]} 76. Rh5 {[%clk 0:01:32.9]} 76... Rc7 {[%clk 0:00:04.2]} 77.
c5 {[%clk 0:01:33.2]} 77... Kf4 {[%clk 0:00:03.7]} 78. Kc4 {[%clk 0:01:33.6]}
78... Ke4 {[%clk 0:00:04.6]} 79. Rh6 {[%clk 0:01:33.1]} 79... Ke5 {[%clk
0:00:04.9]} 80. c6 {[%clk 0:01:33]} 80... Rc8 {[%clk 0:00:03.8]} 81. Kc5 {[%clk
0:01:33.4]} 81... Kf5 {[%clk 0:00:03.5]} 82. Rh7 {[%clk 0:01:33.6]} 82... Ke6
{[%clk 0:00:03.5]} 83. c7 {[%clk 0:01:32.2]} 83... Rxc7+ {[%clk 0:00:01.3]} 84.
Rxc7 {[%clk 0:01:31.6]} 84... Kf6 {[%clk 0:00:02.2]} 1-0

[Event "*** Titled Tuesday Blitz"]
[Site "Chess.com"]
[Date "2021.03.02"]
[Round "5"]
[White "Chernobay_Artem"]
[Black "Aslanov_Umid"]
[Result "1-0"]
[WhiteElo "2618"]
[BlackElo "2413"]
[TimeControl "180+1"]
[EndTime "10:56:06 PST"]
[Termination "Chernobay_Artem won by checkmate"]

1. d4 {[%clk 0:02:53.1]} 1... d5 {[%clk 0:02:59.8]} 2. c4 {[%clk 0:02:53.6]}
2... e6 {[%clk 0:02:59.7]} 3. Nc3 {[%clk 0:02:54.1]} 3... c6 {[%clk 0:02:59.4]}
4. e4 {[%clk 0:02:52.8]} 4... dxe4 {[%clk 0:02:59.3]} 5. Nxe4 {[%clk 0:02:53.7]}
5... Bb4+ {[%clk 0:02:59.1]} 6. Bd2 {[%clk 0:02:53.9]} 6... Qxd4 {[%clk
0:02:59.3]} 7. Bxb4 {[%clk 0:02:54.2]} 7... Qxe4+ {[%clk 0:02:59.8]} 8. Be2
{[%clk 0:02:54.5]} 8... Na6 {[%clk 0:02:58.2]} 9. Ba5 {[%clk 0:02:54.3]} 9... b6
{[%clk 0:02:49.9]} 10. Qd6 {[%clk 0:02:37.7]} 10... Bd7 {[%clk 0:02:47.5]} 11.
Bc3 {[%clk 0:02:12.7]} 11... Nf6 {[%clk 0:02:33.2]} 12. Nf3 {[%clk 0:02:10.3]}
12... O-O-O {[%clk 0:02:19.9]} 13. Nd2 {[%clk 0:01:59.1]} 13... Qxg2 {[%clk
0:01:46.7]} 14. Bf3 {[%clk 0:01:45.3]} 14... Qg5 {[%clk 0:01:45.1]} 15. O-O-O
{[%clk 0:01:37.2]} 15... Qc5 {[%clk 0:01:39.3]} 16. Qd3 {[%clk 0:01:12.5]} 16...
Nb4 {[%clk 0:01:16.6]} 17. Qb1 {[%clk 0:01:12.1]} 17... Be8 {[%clk 0:00:54.1]}
18. Ne4 {[%clk 0:00:58.7]} 18... Nxe4 {[%clk 0:00:52.4]} 19. Bxe4 {[%clk
0:00:59.6]} 19... Qg5+ {[%clk 0:00:51.1]} 20. Rd2 {[%clk 0:00:56.3]} 20... Rxd2
{[%clk 0:00:36.8]} 21. Bxd2 {[%clk 0:00:55.8]} 21... Qc5 {[%clk 0:00:37.3]} 22.
b3 {[%clk 0:00:50.6]} 22... f5 {[%clk 0:00:35.4]} 23. Bf3 {[%clk 0:00:33.8]}
23... Bg6 {[%clk 0:00:31.8]} 24. a3 {[%clk 0:00:27.3]} 24... Na6 {[%clk
0:00:26.2]} 25. Qb2 {[%clk 0:00:23.6]} 25... Rd8 {[%clk 0:00:22.3]} 26. Be3
{[%clk 0:00:22.8]} 26... Qe7 {[%clk 0:00:21.4]} 27. Bxc6 {[%clk 0:00:20.9]}
27... Nc5 {[%clk 0:00:20.4]} 28. Kb1 {[%clk 0:00:18.6]} 28... f4+ {[%clk
0:00:18.5]} 29. Ka1 {[%clk 0:00:17.7]} 29... fxe3 {[%clk 0:00:18.9]} 30. fxe3
{[%clk 0:00:18.6]} 30... Qf6 {[%clk 0:00:17.8]} 31. b4 {[%clk 0:00:17.2]} 31...
Qxb2+ {[%clk 0:00:15.3]} 32. Kxb2 {[%clk 0:00:18.1]} 32... Nd3+ {[%clk
0:00:13.6]} 33. Kc3 {[%clk 0:00:18.2]} 33... Ne5 {[%clk 0:00:13.9]} 34. Bb5
{[%clk 0:00:17.3]} 34... Rd3+ {[%clk 0:00:14.2]} 35. Kb2 {[%clk 0:00:18]} 35...
Rxe3 {[%clk 0:00:14]} 36. h4 {[%clk 0:00:18.6]} 36... Re1 {[%clk 0:00:11.8]} 37.
Rh2 {[%clk 0:00:15.4]} 37... Nd3+ {[%clk 0:00:10.1]} 38. Kc3 {[%clk 0:00:14.9]}
38... Nf4 {[%clk 0:00:10.5]} 39. Rf2 {[%clk 0:00:12.1]} 39... e5 {[%clk
0:00:10]} 40. c5 {[%clk 0:00:11.7]} 40... bxc5 {[%clk 0:00:09.4]} 41. bxc5
{[%clk 0:00:12.6]} 41... Rc1+ {[%clk 0:00:09.5]} 42. Kb4 {[%clk 0:00:09.5]}
42... a5+ {[%clk 0:00:10]} 43. Kxa5 {[%clk 0:00:08.9]} 43... Rxc5 {[%clk
0:00:10.5]} 44. Kb6 {[%clk 0:00:09.4]} 44... Rc3 {[%clk 0:00:09.4]} 45. a4
{[%clk 0:00:09.7]} 45... Rb3 {[%clk 0:00:09]} 46. a5 {[%clk 0:00:09.8]} 46...
Nd3 {[%clk 0:00:08.8]} 47. Rf8+ {[%clk 0:00:08.7]} 47... Be8 {[%clk 0:00:06.1]}
48. Rxe8# {[%clk 0:00:09]} 1-0

[Event "*** Titled Tuesday Blitz"]
[Site "Chess.com"]
[Date "2021.03.02"]
[Round "5"]
[White "ENajer77"]
[Black "Firouzja2003"]
[Result "1/2-1/2"]
[WhiteElo "2630"]
[BlackElo "3127"]
[TimeControl "180+1"]
[EndTime "10:56:07 PST"]
[Termination "Game drawn by repetition"]

1. d4 {[%clk 0:02:17.1]} 1... Nf6 {[%clk 0:02:58.9]} 2. c4 {[%clk 0:02:17.1]}
2... b6 {[%clk 0:02:57.3]} 3. f3 {[%clk 0:02:16.2]} 3... Bb7 {[%clk 0:02:58.2]}
4. e4 {[%clk 0:02:15.8]} 4... d6 {[%clk 0:02:58.8]} 5. Nc3 {[%clk 0:02:15.8]}
5... g6 {[%clk 0:02:59.1]} 6. Be3 {[%clk 0:02:14.7]} 6... Bg7 {[%clk 0:02:59.1]}
7. Qd2 {[%clk 0:02:15.2]} 7... Nc6 {[%clk 0:02:55.7]} 8. Nge2 {[%clk 0:02:13.3]}
8... a6 {[%clk 0:02:47.5]} 9. Bh6 {[%clk 0:02:03.4]} 9... Bxh6 {[%clk
0:02:43.8]} 10. Qxh6 {[%clk 0:02:04]} 10... e6 {[%clk 0:02:38.9]} 11. O-O-O
{[%clk 0:02:00]} 11... Qe7 {[%clk 0:02:38]} 12. Kb1 {[%clk 0:01:57.3]} 12...
O-O-O {[%clk 0:02:36.8]} 13. Qe3 {[%clk 0:01:49.4]} 13... Kb8 {[%clk 0:02:28.9]}
14. Nc1 {[%clk 0:01:48.3]} 14... e5 {[%clk 0:02:19.1]} 15. d5 {[%clk 0:01:31]}
15... Nd4 {[%clk 0:02:16.8]} 16. Nb3 {[%clk 0:01:29.6]} 16... Nxb3 {[%clk
0:02:15.3]} 17. axb3 {[%clk 0:01:30.2]} 17... Nd7 {[%clk 0:02:13.8]} 18. b4
{[%clk 0:01:29]} 18... f5 {[%clk 0:02:13.9]} 19. Bd3 {[%clk 0:01:26.6]} 19...
Rhf8 {[%clk 0:02:12.9]} 20. Bc2 {[%clk 0:01:10.9]} 20... fxe4 {[%clk 0:02:09.1]}
21. Nxe4 {[%clk 0:01:06.8]} 21... Rf5 {[%clk 0:02:04.4]} 22. c5 {[%clk
0:01:01.7]} 22... Nf6 {[%clk 0:01:38.2]} 23. Nxd6 {[%clk 0:00:57.9]} 23... cxd6
{[%clk 0:01:24.7]} 24. Bxf5 {[%clk 0:00:52]} 24... Nxd5 {[%clk 0:01:18.6]} 25.
Rxd5 {[%clk 0:00:26.2]} 25... Bxd5 {[%clk 0:01:19.5]} 26. Be4 {[%clk 0:00:20.3]}
26... Bxe4+ {[%clk 0:01:14]} 27. Qxe4 {[%clk 0:00:17.8]} 27... dxc5 {[%clk
0:01:12.2]} 28. bxc5 {[%clk 0:00:17.1]} 28... Qxc5 {[%clk 0:01:13.1]} 29. Rc1
{[%clk 0:00:17]} 29... Qb5 {[%clk 0:01:12.8]} 30. Qc2 {[%clk 0:00:15.5]} 30...
Qd3 {[%clk 0:01:11.8]} 31. Qxd3 {[%clk 0:00:14.9]} 31... Rxd3 {[%clk 0:01:12.7]}
32. Rc6 {[%clk 0:00:14.7]} 32... Rd1+ {[%clk 0:00:53]} 33. Ka2 {[%clk
0:00:13.5]} 33... Rd2 {[%clk 0:00:26.9]} 34. Rxb6+ {[%clk 0:00:13.1]} 34... Ka7
{[%clk 0:00:27.6]} 35. Re6 {[%clk 0:00:12.7]} 35... Rxg2 {[%clk 0:00:28.4]} 36.
Re7+ {[%clk 0:00:12.9]} 36... Kb6 {[%clk 0:00:29]} 37. Rxh7 {[%clk 0:00:13.5]}
37... Kc5 {[%clk 0:00:28.6]} 38. h4 {[%clk 0:00:12.6]} 38... Rg3 {[%clk
0:00:25.5]} 39. Rg7 {[%clk 0:00:10.9]} 39... Rxf3 {[%clk 0:00:24.7]} 40. Rxg6
{[%clk 0:00:11.3]} 40... e4 {[%clk 0:00:23.4]} 41. Rxa6 {[%clk 0:00:10.1]} 41...
e3 {[%clk 0:00:19.3]} 42. Re6 {[%clk 0:00:09.1]} 42... Kd4 {[%clk 0:00:19.9]}
43. h5 {[%clk 0:00:09.6]} 43... Kd3 {[%clk 0:00:17.7]} 44. Rd6+ {[%clk
0:00:09.7]} 44... Kc2 {[%clk 0:00:15.8]} 45. Rc6+ {[%clk 0:00:09.7]} 45... Kd1
{[%clk 0:00:15.8]} 46. Rd6+ {[%clk 0:00:10.2]} 46... Ke1 {[%clk 0:00:16.2]} 47.
h6 {[%clk 0:00:10.5]} 47... Rh3 {[%clk 0:00:14.9]} 48. Kb3 {[%clk 0:00:08.7]}
48... e2+ {[%clk 0:00:14.8]} 49. Kc2 {[%clk 0:00:09.2]} 49... Kf2 {[%clk
0:00:13.9]} 50. Rf6+ {[%clk 0:00:09.3]} 50... Rf3 {[%clk 0:00:14]} 51. Rxf3+
{[%clk 0:00:08.7]} 51... Kxf3 {[%clk 0:00:14.9]} 52. h7 {[%clk 0:00:09.3]} 52...
e1=Q {[%clk 0:00:14.9]} 53. h8=Q {[%clk 0:00:09.4]} 53... Qe4+ {[%clk
0:00:15.5]} 54. Kb3 {[%clk 0:00:09.6]} 54... Qd5+ {[%clk 0:00:12.4]} 55. Kc2
{[%clk 0:00:09.8]} 55... Qe4+ {[%clk 0:00:12.3]} 56. Kc1 {[%clk 0:00:10.1]}
56... Qe1+ {[%clk 0:00:12.5]} 57. Kc2 {[%clk 0:00:10.1]} 57... Qe4+ {[%clk
0:00:13]} 1/2-1/2